bitfinex-derivatives/quotes_ETHF0:USTF0_20241129
["timestamp","ask_amount","ask_price","bid_price","bid_amount"]
[1732855477228,0.70215,3573.7,3573.6,5.22474467]
[1732855478031,5.07783192,3573.7,3573.6,5.22474467]
[1732855481826,7.59648192,3573.7,3573.1,4.40501718]
[1732855482131,3.55892576,3573.3,3573.1,1.31453467]
[1732855482433,0.4459,3573.2,3573.1,1.03474467]
[1732855484631,0.72569,3573.2,3573.1,4.67474467]
[1732855486330,0.4459,3573.2,3573.1,4.67474467]
[1732855486538,0.4459,3573.2,3573.1,4.95453467]
[1732855488539,0.27978,3573.3,3573.1,4.95453467]
[1732855494240,3.55892576,3573.3,3573.1,4.95453467]
[1732855494744,3.98792576,3573.3,3573.1,4.95453467]
[1732855494945,0.70878,3573.3,3573.1,4.95453467]
[1732855495445,3.98792576,3573.3,3573.1,4.95453467]
[1732855495739,0.70878,3573.3,3573.1,4.95453467]
[1732855496145,3.98792576,3573.3,3573.1,4.95453467]
[1732855496542,0.70878,3573.3,3573.1,4.95453467]
[1732855496736,3.27914576,3573.4,3573.1,4.67474467]
[1732855496939,3.27914576,3573.6,3573.3,7.61281718]
[1732855497142,3.27914576,3573.8,3573.5,5.43976185]
[1732855497346,3.27914576,3573.9,3573.7,3.2078]
[1732855497546,3.27914576,3573.9,3573.8,1.31448467]
[1732855497748,3.27914576,3573.9,3573.8,5.13448467]
[1732855497946,3.27914576,3574.0,3573.9,0.27973]
[1732855498248,3.27914576,3574.1,3573.9,4.5732]
[1732855498448,3.27914576,3574.1,3574.0,1.31446467]
[1732855498648,0.70391,3574.2,3574.0,1.31446467]
[1732855498949,0.70391,3574.2,3574.0,1.03474467]
[1732855499442,0.4242,3574.2,3574.0,1.03474467]
[1732855499648,3.27904279,3574.1,3574.0,1.31446467]
[1732855501439,3.27904279,3574.1,3574.0,5.61446467]
[1732855501643,3.70324279,3574.2,3574.0,5.61446467]
[1732855502050,3.70324279,3574.2,3574.0,4.3]
[1732855502348,3.98295279,3574.2,3574.0,4.3]
[1732855502551,3.27904279,3574.1,3574.0,4.3]
[1732855503153,3.27904279,3574.1,3573.9,0.4232]
[1732855503345,0.27975,3573.8,3573.6,4.40501718]
[1732855503551,4.41097279,3574.0,3573.7,1.03474467]
[1732855503849,3.27904279,3574.0,3573.8,0.27974]
[1732855504051,3.55876279,3574.1,3573.9,0.4267]
[1732855504848,0.27972,3574.0,3573.9,0.4267]
[1732855506347,0.27975,3573.8,3573.6,4.40501718]
[1732855506651,3.72704279,3574.0,3573.6,1.80144467]
[1732855507055,0.27974,3573.8,3573.6,2.08119467]
[1732855507254,0.27973,3573.9,3573.7,0.27975]
[1732855507554,3.72704279,3574.0,3573.7,0.38]
[1732855507742,0.27975,3573.7,3573.5,3.2078]
[1732855507945,0.4122,3573.6,3573.5,7.0078]
[1732855508446,0.69195,3573.6,3573.5,3.8]
[1732855509546,0.69195,3573.6,3573.1,4.24254467]
[1732855509547,4.78788192,3573.6,3573.1,4.24254467]
[1732855509749,3.27641423,3573.4,3573.1,4.48254467]
[1732855510049,0.27978,3573.3,3573.1,4.48254467]
[1732855510256,0.70328,3573.3,3573.1,4.24254467]
[1732855510553,0.70328,3573.3,3573.1,4.52233467]
[1732855510854,0.70328,3573.3,3573.1,4.24254467]
[1732855511150,0.27979,3573.2,3573.1,3.2078]
[1732855511344,0.27979,3573.2,3572.7,6.57768174]
[1732855511345,2.7984,3573.2,3572.6,4.40501718]
[1732855511545,2.7984,3573.2,3572.0,10.9628029]
[1732855511546,3.55562944,3572.7,3572.1,4.40501718]
[1732855511754,1.03474467,3572.4,3572.0,4.81521718]
[1732855511949,0.27986,3572.3,3572.0,0.4102]
[1732855512252,0.27986,3572.3,3572.0,1.72482467]
[1732855512951,3.27579944,3572.5,3572.0,1.44494467]
[1732855513257,0.27985,3572.4,3572.0,1.72482467]
[1732855514143,5.57384411,3572.6,3572.0,1.44494467]
[1732855514349,0.27985,3572.5,3572.2,1.03474467]
[1732855514552,1.2633,3572.6,3572.2,1.03474467]
[1732855514756,0.27984,3572.5,3572.2,1.03474467]
[1732855515052,0.8544,3572.6,3572.4,1.31459467]
[1732855515643,0.4082,3572.6,3572.4,1.31459467]
[1732855516247,0.4082,3572.6,3572.4,1.03474467]
[1732855516450,0.4082,3572.6,3572.3,0.27985]
[1732855517256,0.27982,3572.8,3572.4,1.31458467]
[1732855517452,0.8474,3572.9,3572.6,0.27983]
[1732855517646,1.12721,3572.9,3572.6,0.27983]
[1732855517855,1.12721,3572.9,3572.7,0.4318]
[1732855518461,3.27579944,3573.1,3572.9,0.27981]
[1732855518646,4.56029944,3573.4,3573.0,1.03474467]
[1732855519052,1.56427,3573.4,3573.1,0.27979]
[1732855519456,1.2845,3573.4,3573.2,0.70318]
[1732855519855,1.2845,3573.4,3573.3,0.27978]
[1732855520159,0.27976,3573.6,3573.3,0.27978]
[1732855520555,3.27579944,3573.7,3573.2,0.4234]
[1732855520756,0.27976,3573.6,3573.3,0.27977]
[1732855521158,3.55554944,3573.7,3573.4,0.27977]
[1732855521560,3.27579944,3573.7,3573.4,0.27977]
[1732855521860,4.57199944,3573.8,3573.4,4.97474467]
[1732855522161,3.27579944,3573.9,3573.7,0.27975]
[1732855522361,3.27579944,3574.0,3573.5,3.6473]
[1732855522563,3.27579944,3574.0,3573.6,1.03474467]
[1732855522765,3.2078,3574.3,3573.6,1.03474467]
[1732855522766,3.27579944,3574.3,3573.9,3.2078]
[1732855522972,3.27579944,3574.6,3574.3,0.2797]
[1732855523166,4.11309944,3574.7,3574.3,1.03474467]
[1732855523366,0.8373,3574.7,3574.3,1.03474467]
[1732855523567,0.8373,3574.7,3574.1,1.31445467]
[1732855523868,1.03474467,3574.6,3574.2,0.4395]
[1732855524068,0.27969,3574.5,3574.2,0.4395]
[1732855524470,1.03474467,3574.6,3574.2,0.4395]
[1732855524773,0.27969,3574.5,3574.2,0.4395]
[1732855525075,0.2797,3574.4,3574.2,0.4395]
[1732855525373,4.39277944,3574.7,3574.2,0.7192]
[1732855525573,0.27969,3574.5,3574.2,0.4395]
[1732855525775,0.27968,3574.6,3574.2,0.71921]
[1732855526163,0.27968,3574.5,3574.2,0.4395]
[1732855526369,0.27968,3574.6,3574.2,0.71921]
[1732855528264,1.11697,3574.7,3574.3,1.31444467]
[1732855528667,3.27579944,3574.9,3574.5,1.03474467]
[1732855528865,3.70269944,3575.0,3574.7,1.03474467]
[1732855529064,3.70269944,3575.0,3574.7,1.31440467]
[1732855529065,0.4269,3575.0,3574.7,1.31440467]
[1732855529269,0.4269,3575.0,3574.8,0.27966]
[1732855529470,4.41403944,3575.1,3574.8,0.27966]
[1732855529471,1.13824,3575.1,3574.8,0.69316]
[1732855529665,1.13824,3575.1,3574.8,0.4135]
[1732855530073,0.27965,3575.0,3574.8,0.4135]
[1732855530275,0.8586,3575.1,3574.8,0.4135]
[1732855530276,0.27965,3574.9,3574.8,0.4135]
[1732855530670,0.27965,3575.0,3574.8,0.4135]
[1732855531070,0.27968,3574.6,3574.3,3.2078]
[1732855531270,0.27969,3574.4,3574.3,1.7235]
[1732855531675,0.27969,3574.4,3574.3,0.4135]
[1732855531976,0.27969,3574.5,3574.3,0.4135]
[1732855532172,0.27968,3574.6,3574.3,0.4135]
[1732855532368,0.68787,3574.7,3574.3,0.6932]
[1732855532574,0.27968,3574.6,3574.3,0.6932]
[1732855532776,0.68787,3574.7,3574.3,0.6932]
[1732855532976,0.27966,3574.9,3574.4,1.31443467]
[1732855533175,0.27966,3574.9,3574.5,0.27968]
[1732855533473,4.4746,3575.1,3574.5,0.27968]
[1732855533668,0.27967,3574.8,3574.5,3.62]
[1732855533866,0.27965,3575.0,3574.6,1.03474467]
[1732855534173,0.27965,3575.0,3574.6,5.37441467]
[1732855535772,0.27966,3574.9,3574.6,5.37441467]
[1732855536271,0.27965,3575.0,3574.6,4.33967]
[1732855538171,0.27965,3575.0,3574.7,0.27967]
[1732855538372,0.27965,3575.0,3574.7,4.72967]
[1732855538567,1.2668,3575.1,3574.8,0.4404]
[1732855538881,0.27965,3574.9,3574.8,0.4404]
[1732855539570,0.27965,3575.0,3574.8,0.4404]
[1732855539780,0.27965,3574.9,3574.8,0.4404]
[1732855541975,1.2668,3575.1,3574.8,4.1504]
[1732855542172,0.27965,3575.0,3574.9,0.4388]
[1732855542479,0.27965,3575.0,3574.9,4.7188]
[1732855544377,0.4082,3575.1,3574.9,4.7188]
[1732855544580,0.27965,3575.0,3574.9,4.7188]
[1732855550986,0.27963,3575.2,3574.9,4.7188]
[1732855551280,1.13712,3575.3,3575.0,0.27965]
[1732855551479,0.27964,3575.2,3575.0,4.02]
[1732855551685,0.8575,3575.3,3575.0,4.02]
[1732855551878,0.27963,3575.2,3574.9,0.71845]
[1732855552074,0.27963,3575.2,3574.9,4.0988]
[1732855552274,0.27964,3575.1,3574.9,4.0988]
[1732855552881,0.27963,3575.2,3574.9,4.0988]
[1732855553082,0.27965,3575.0,3574.9,4.0988]
[1732855553280,0.27965,3575.0,3574.9,3.66]
[1732855553785,4.13329944,3575.3,3574.9,3.66]
[1732855553981,0.27964,3575.1,3574.9,3.66]
[1732855554381,0.27963,3575.2,3574.9,3.93965]
[1732855555679,0.27964,3575.1,3574.9,3.93965]
[1732855556081,0.27964,3575.2,3574.9,3.93965]
[1732855558385,0.27964,3575.2,3575.1,1.03306641]
[1732855560490,2.7968,3575.2,3574.5,0.4425]
[1732855560788,0.27968,3574.5,3574.3,4.24086641]
[1732855560983,0.27969,3574.5,3574.3,4.24086641]
[1732855561685,0.27968,3574.5,3574.3,4.52056641]
[1732855561990,0.27968,3574.5,3574.3,8.59086641]
[1732855562784,0.27969,3574.5,3574.3,8.59086641]
[1732855565193,0.27968,3574.6,3574.3,8.87056641]
[1732855565392,0.27968,3574.6,3574.5,1.03306641]
[1732855566287,3.55547944,3574.6,3574.5,1.03306641]
[1732855566791,0.27969,3574.4,3574.3,4.24086641]
[1732855566995,0.27969,3574.4,3574.3,5.02086641]
[1732855567383,3.55561848,3574.4,3574.3,5.02086641]
[1732855568294,0.27969,3574.4,3574.3,5.02086641]
[1732855568791,3.55864151,3574.4,3574.3,5.02086641]
[1732855569196,3.27895151,3574.4,3574.3,5.02086641]
[1732855569398,3.55864151,3574.4,3574.3,5.02086641]
[1732855569696,3.27895151,3574.4,3574.3,5.02086641]
[1732855569904,3.27895151,3574.4,3574.3,5.30056641]
[1732855570088,3.27895151,3574.4,3574.3,4.24086641]
[1732855570590,3.27895151,3574.6,3574.4,0.27969]
[1732855570787,3.27895151,3574.6,3574.5,0.4058]
[1732855571092,3.27895151,3574.7,3574.5,6.08434641]
[1732855571404,0.27967,3574.7,3574.6,0.4124]
[1732855571692,0.27967,3574.7,3574.1,6.57768174]
[1732855571693,2.7976,3574.6,3574.0,4.40501718]
[1732855571993,2.7976,3574.6,3573.7,3.2078]
[1732855571994,0.27973,3573.9,3573.8,0.8524]
[1732855572290,3.55870402,3573.9,3573.8,0.8524]
[1732855572495,3.27897402,3573.9,3573.8,0.8524]
[1732855572799,3.27897402,3574.0,3573.8,2.16520641]
[1732855573092,3.27897402,3574.0,3573.9,1.03306641]
[1732855573495,0.27972,3574.1,3573.9,1.03306641]
[1732855573496,3.55869402,3574.1,3573.9,1.03306641]
[1732855573793,0.27972,3574.0,3573.9,1.03306641]
[1732855573994,3.27897402,3574.0,3573.9,1.03306641]
[1732855574188,3.55869402,3574.0,3573.9,1.03306641]
[1732855574395,0.27972,3574.0,3573.9,1.03306641]
[1732855575197,3.55869402,3574.1,3573.9,5.15306641]
[1732855575396,3.27897402,3574.0,3573.9,5.15306641]
[1732855576698,3.55869402,3574.1,3573.9,5.15306641]
[1732855576991,3.27897402,3574.0,3573.9,5.15306641]
[1732855577198,3.55869402,3574.1,3573.9,5.15306641]
[1732855577397,3.27897402,3574.1,3573.9,5.15306641]
[1732855577998,3.27897402,3574.2,3574.1,0.27972]
[1732855578292,3.27897402,3574.2,3573.9,1.03306641]
[1732855578490,3.55868402,3574.2,3573.9,5.07279641]
[1732855578884,3.55868402,3574.2,3574.0,0.27972]
[1732855579300,3.27897402,3574.3,3574.1,4.11038641]
[1732855579489,3.27897402,3574.4,3574.2,0.8315]
[1732855579689,6.76646402,3574.5,3574.3,1.31276641]
[1732855579897,6.76646402,3574.5,3574.4,0.4276]
[1732855580098,3.48749,3574.5,3574.4,0.8376]
[1732855580293,6.76302023,3574.5,3574.4,0.8376]
[1732855580488,3.2078,3574.5,3574.4,0.8376]
[1732855580794,6.76298117,3574.5,3574.4,0.8376]
[1732855580991,6.48330117,3574.5,3574.4,0.8376]
[1732855581194,3.27550117,3574.5,3574.4,0.8376]
[1732855582104,3.27550117,3574.5,3574.4,1.11729]
[1732855582598,3.27550117,3574.6,3574.4,1.11729]
[1732855582797,3.27550117,3574.6,3574.5,1.03306641]
[1732855582992,3.27550117,3574.6,3574.5,5.34306641]
[1732855583197,3.27550117,3574.7,3574.5,8.83054641]
[1732855583393,0.27967,3574.8,3574.5,8.83054641]
[1732855583394,3.27550117,3574.8,3574.5,11.34846641]
[1732855583595,3.27550117,3574.9,3574.7,1.31273641]
[1732855583899,3.27550117,3574.9,3574.8,1.46116641]
[1732855584099,3.27550117,3574.9,3574.8,5.50116641]
[1732855584795,3.27550117,3574.9,3574.8,5.78082641]
[1732855585098,3.27550117,3575.0,3574.8,5.78082641]
[1732855585294,3.27550117,3575.0,3574.9,1.03306641]
[1732855585495,3.27550117,3575.0,3574.9,4.98306641]
[1732855586103,3.55515117,3575.0,3574.9,4.98306641]
[1732855586493,3.69690117,3575.0,3574.6,0.4251]
[1732855586704,0.27967,3574.8,3574.7,1.03306641]
[1732855587196,0.4246,3574.8,3574.7,1.03306641]
[1732855587399,0.4246,3574.8,3574.7,5.39306641]
[1732855587595,3.27550117,3574.9,3574.7,5.39306641]
[1732855587791,7.58018108,3575.1,3574.7,5.39306641]
[1732855587792,3.27550117,3575.0,3574.7,5.39306641]
[1732855588003,3.55515117,3575.0,3574.9,1.03306641]
[1732855588194,3.97655117,3575.0,3574.9,3.53306641]
[1732855588800,0.70105,3575.0,3574.9,3.53306641]
[1732855589202,3.97814915,3575.0,3574.9,3.53306641]
[1732855590304,3.9780374,3575.0,3574.9,3.53306641]
[1732855590606,0.70105,3575.0,3574.9,3.53306641]
[1732855592506,3.2078,3575.1,3574.9,3.53306641]
[1732855592707,4.36983197,3575.0,3574.9,3.53306641]
[1732855593001,4.36983197,3575.0,3574.9,3.95346641]
[1732855594800,4.36983197,3575.0,3574.9,3.53306641]
[1732855594999,1.12795,3575.0,3574.9,3.53306641]
[1732855596709,1.12795,3575.0,3574.9,1.03306641]
[1732855598906,0.8483,3575.0,3574.9,1.03306641]
[1732855599210,3.27717439,3575.1,3574.9,5.11271641]
[1732855599403,3.27717439,3575.1,3575.0,0.4062]
[1732855599605,3.27717439,3575.1,3575.0,4.7562]
[1732855599812,3.55681439,3575.1,3575.0,4.7562]
[1732855601005,3.55681439,3575.1,3575.0,4.35]
[1732855601213,0.27965,3575.0,3574.9,1.03306641]
[1732855601402,3.98519773,3575.0,3574.9,1.03306641]
[1732855601598,0.70885,3575.0,3574.9,1.03306641]
[1732855602313,5.07849179,3575.0,3574.9,1.03306641]
[1732855603015,0.70885,3575.0,3574.9,1.03306641]
[1732855603207,5.07595588,3575.0,3574.9,1.03306641]
[1732855603511,11.90540768,3575.0,3574.1,3.2078]
[1732855603714,0.27971,3574.2,3574.1,4.24086641]
[1732855603905,3.27528916,3574.4,3574.1,4.24086641]
[1732855604109,3.55498916,3574.4,3574.2,1.03306641]
[1732855604511,0.2797,3574.3,3574.2,1.03306641]
[1732855604715,3.55500916,3574.4,3574.2,1.03306641]
[1732855605017,0.27972,3574.3,3574.2,1.03306641]
[1732855606114,3.55497916,3574.4,3574.2,1.03306641]
[1732855607213,0.4228,3574.4,3574.2,5.07276641]
[1732855607416,0.4228,3574.4,3574.2,4.79306641]
[1732855607916,0.7025,3574.4,3574.2,4.79306641]
[1732855608514,3.97778916,3574.4,3574.2,4.79306641]
[1732855609218,0.7025,3574.4,3574.2,4.79306641]
[1732855609415,0.4228,3574.4,3574.2,5.07277641]
[1732855609915,0.70249,3574.4,3574.2,4.79306641]
[1732855610317,0.4228,3574.4,3574.2,5.07277641]
[1732855610815,0.70249,3574.4,3574.2,4.79306641]
[1732855611216,0.4228,3574.4,3574.2,4.79306641]
[1732855611414,3.27528916,3574.5,3574.3,0.2797]
[1732855611614,3.27528916,3574.5,3574.4,1.45806641]
[1732855611919,3.55496916,3574.5,3574.4,5.51806641]
[1732855612620,3.27528916,3574.5,3574.4,5.51806641]
[1732855612918,3.27528916,3574.6,3574.5,0.27968]
[1732855613126,3.27528916,3574.7,3574.5,0.27968]
[1732855613314,3.27528916,3574.7,3574.6,1.03306641]
[1732855613516,3.27528916,3574.7,3574.6,5.56274641]
[1732855616119,3.27528916,3574.7,3574.6,8.36034641]
[1732855616320,3.27528916,3574.8,3574.7,0.27967]
[1732855616515,3.27528916,3574.8,3574.7,4.64967]
[1732855616719,3.27528916,3574.9,3574.8,0.27966]
[1732855616919,3.27528916,3574.9,3574.8,5.42272641]
[1732855617817,3.27528916,3574.9,3574.8,5.73329319]
[1732855618522,3.27528916,3574.9,3574.8,5.73329398]
[1732855620524,0.71123,3575.2,3574.8,8.25123398]
[1732855620525,3.27528916,3575.0,3574.8,8.25123398]
[1732855620729,3.27528916,3575.1,3575.0,1.31271641]
[1732855620918,3.27528916,3575.2,3575.1,0.27964]
[1732855621224,3.27528916,3575.2,3575.1,6.12119679]
[1732855624427,4.36705221,3575.4,3575.2,0.27963]
[1732855624622,4.55705221,3575.4,3575.3,1.15033022]
[1732855624825,4.55705221,3575.4,3575.3,5.01995022]
[1732855625529,0.19,3575.4,3575.3,5.01995022]
[1732855626221,3.46801035,3575.4,3575.3,5.01995022]
[1732855626620,3.27801035,3575.4,3575.3,5.01995022]
[1732855626829,3.27801035,3575.5,3575.3,4.74033022]
[1732855627130,5.85801035,3575.5,3575.4,1.31267641]
[1732855627425,5.85801035,3575.5,3575.4,5.52267641]
[1732855627625,6.94705221,3575.5,3575.4,5.52267641]
[1732855629130,6.94705221,3575.5,3575.4,5.63988589]
[1732855629436,2.58,3575.5,3575.4,5.52267641]
[1732855630037,2.58,3575.5,3575.4,5.63985656]
[1732855632635,2.58,3575.5,3575.4,5.63977702]
[1732855633024,2.58,3575.5,3575.4,5.36016702]
[1732855633335,2.58,3575.5,3575.4,5.63977702]
[1732855634532,2.58,3575.5,3575.4,5.36016702]
[1732855634727,2.85961,3575.5,3575.4,5.24306641]
[1732855635235,2.58,3575.5,3575.4,5.24306641]
[1732855635632,2.58,3575.5,3575.4,5.52267641]
[1732855636029,2.58,3575.5,3575.4,5.24306641]
[1732855636237,2.58,3575.5,3575.4,5.52267641]
[1732855636435,2.58,3575.5,3575.4,5.24306641]
[1732855636633,2.85961,3575.5,3575.4,5.24306641]
[1732855637240,2.58,3575.5,3575.4,5.24306641]
[1732855637637,2.58,3575.5,3575.4,5.52267641]
[1732855637835,2.58,3575.5,3575.4,5.63844868]
[1732855639344,2.58,3575.5,3575.4,5.6384774]
[1732855639743,2.58,3575.5,3575.4,5.52267641]
[1732855640044,2.58,3575.5,3575.4,5.63847836]
[1732855642836,2.58,3575.5,3575.4,5.52267641]
[1732855643045,2.58,3575.5,3575.4,5.6385665]
[1732855643743,2.58,3575.5,3575.4,8.8463665]
[1732855647645,2.34397397,3575.5,3575.4,11.6431665]
[1732855648441,2.34397397,3575.5,3575.4,8.8463665]
[1732855649742,2.34397397,3575.5,3575.4,8.73047641]
[1732855649948,2.34397397,3575.5,3575.4,8.8464388]
[1732855651248,2.34397397,3575.5,3575.4,11.6432388]
[1732855658050,2.34397397,3575.5,3575.4,8.43545204]
[1732855658352,2.34397397,3575.5,3575.4,11.64325204]
[1732855661457,2.34397397,3575.5,3575.4,16.04826922]
[1732855664556,2.34397397,3575.5,3575.4,17.25257849]
[1732855664757,2.34397397,3575.5,3575.4,16.03791272]
[1732855665454,2.34397397,3575.5,3575.4,17.2533208]
[1732855666163,2.34397397,3575.5,3575.4,21.64856222]
[1732855666356,2.34397397,3575.5,3575.4,17.2533208]
[1732855667250,0.4149,3575.9,3575.8,0.27958]
[1732855667459,4.7249,3575.9,3575.8,8.28642752]
[1732855670955,4.7249,3575.9,3575.8,8.17044641]
[1732855671156,4.7249,3575.9,3575.8,8.28645998]
[1732855673052,7.5217,3575.9,3575.8,1.42865998]
[1732855674261,7.5217,3575.9,3575.8,1.42874204]
[1732855675261,4.7249,3575.9,3575.8,1.42874204]
[1732855675563,7.5217,3575.9,3575.8,1.42874204]
[1732855677158,10.80059924,3575.9,3575.8,1.42874204]
[1732855678060,8.00379924,3575.9,3575.8,1.42874204]
[1732855678663,10.80059924,3575.9,3575.8,1.42874204]
[1732855678857,8.00379924,3575.9,3575.8,1.14916204]
[1732855679173,11.08017924,3575.9,3575.8,0.11609563]
[1732855679461,16.47391207,3575.9,3575.1,4.39526621]
[1732855679666,4.37348827,3575.5,3575.3,1.03306641]
[1732855679858,1.12551,3575.4,3575.3,1.03306641]
[1732855680059,3.92231,3575.4,3575.3,1.03306641]
[1732855680869,8.29579827,3575.4,3575.3,1.03306641]
[1732855682168,3.92231,3575.4,3575.3,1.03306641]
[1732855682769,4.36181,3575.4,3575.3,1.03306641]
[1732855686668,1.56501,3575.4,3575.3,1.03306641]
[1732855687176,3.69587,3575.4,3575.3,5.64268641]
[1732855687473,3.27867,3575.5,3575.3,5.36306641]
[1732855687769,3.27867,3575.5,3575.4,1.31267641]
[1732855687970,3.27867,3575.6,3575.4,5.37306641]
[1732855688172,3.27867,3575.6,3575.5,1.31267641]
[1732855688370,3.27867,3575.6,3575.5,5.77917641]
[1732855689672,7.92867,3575.6,3575.5,5.77917641]
[1732855691777,4.65,3575.6,3575.5,5.89475455]
[1732855692876,4.65,3575.6,3575.5,6.0103366]
[1732855693976,7.92867,3575.6,3575.5,6.0103366]
[1732855695178,7.92867,3575.6,3575.5,4.97727019]
[1732855695374,7.92867,3575.6,3575.5,6.0103366]
[1732855695575,4.65,3575.6,3575.5,6.0103366]
[1732855696279,4.65,3575.6,3575.5,5.89475455]
[1732855696580,4.65,3575.6,3575.5,6.01032708]
[1732855697776,4.65,3575.6,3575.5,9.21812708]
[1732855700178,4.65,3575.6,3575.5,9.21815357]
[1732855700677,4.65,3575.6,3575.5,9.10257543]
[1732855701886,4.65,3575.6,3575.5,11.89937543]
[1732855703286,4.65,3575.6,3575.5,8.69157543]
[1732855703484,4.65,3575.6,3575.5,10.8662987]
[1732855703788,4.65,3575.6,3575.5,11.89936511]
[1732855704382,3.27899215,3575.9,3575.8,0.27958]
[1732855704685,8.00899215,3575.9,3575.8,5.79823511]
[1732855706080,4.73,3575.9,3575.8,5.79823511]
[1732855709388,4.73,3575.9,3575.8,6.83130152]
[1732855709993,4.73,3575.9,3575.8,10.03910152]
[1732855710782,4.73,3575.9,3575.8,9.00603511]
[1732855711593,4.73,3575.9,3575.8,10.03910152]
[1732855714588,4.73,3575.9,3575.8,10.03905201]
[1732855715995,4.73,3575.9,3575.8,7.97291919]
[1732855716197,4.73,3575.9,3575.8,9.00600694]
[1732855716586,4.73,3575.9,3575.8,10.03907335]
[1732855717999,4.73,3575.9,3575.8,9.92351282]
[1732855718189,4.73,3575.9,3575.8,10.03912897]
[1732855722001,4.73,3575.9,3575.8,10.03914253]
[1732855723095,4.73,3575.9,3575.8,9.92351282]
[1732855724498,4.73,3575.9,3575.8,10.03915568]
[1732855727200,4.73,3575.9,3575.8,9.00608927]
[1732855727806,4.73,3575.9,3575.8,10.03915568]
[1732855729096,4.73,3575.9,3575.8,9.92351282]
[1732855729306,4.73,3575.9,3575.8,10.03923358]
[1732855733304,4.73,3575.9,3575.8,14.43537095]
[1732855735011,4.73,3575.9,3575.8,11.22757095]
[1732855735314,4.73,3575.9,3575.8,14.43537095]
[1732855739511,4.73,3575.9,3575.8,10.03923358]
[1732855740713,4.73,3575.9,3575.8,9.00616717]
[1732855741112,4.73,3575.9,3575.8,14.67043294]
[1732855741310,4.73,3575.9,3575.8,21.27032881]
[1732855741617,4.73,3575.9,3575.8,14.67043294]
[1732855741914,4.73,3575.9,3575.8,21.27032557]
[1732855742117,4.73,3575.9,3575.8,14.67043294]
[1732855742313,4.73,3575.9,3575.8,14.67054519]
[1732855742517,4.73,3575.9,3575.8,21.2707536]
[1732855742709,4.73,3575.9,3575.8,21.27075862]
[1732855743106,4.73,3575.9,3575.8,13.3579038]
[1732855743313,4.73,3575.9,3575.8,14.67055021]
[1732855743515,5.1622,3575.9,3575.8,10.19931094]
[1732855744117,5.1622,3575.9,3575.8,11.46464522]
[1732855745014,5.1622,3575.9,3575.8,11.51464522]
[1732855745318,8.43908125,3575.9,3575.8,11.51464522]
[1732855745522,5.1622,3575.9,3575.8,11.51464522]
[1732855746110,8.43908125,3575.9,3575.8,18.11485363]
[1732855746418,5.1622,3575.9,3575.8,18.11485363]
[1732855746914,5.1622,3575.9,3575.8,19.14792004]
[1732855747219,5.1622,3575.9,3575.8,12.54910549]
[1732855747220,4.73,3575.9,3575.8,12.54910549]
[1732855747419,4.73,3575.9,3575.8,11.51603908]
[1732855748817,4.73,3575.9,3575.8,11.51627273]
[1732855750609,4.73,3575.9,3575.8,11.4004347]
[1732855750811,4.73,3575.9,3575.8,20.19890748]
[1732855752222,4.73,3575.9,3575.8,20.31467332]
[1732855752419,4.73,3575.9,3575.8,20.31576514]
[1732855753018,1.72454007,3575.9,3575.8,34.88614514]
[1732855753923,1.72454007,3575.9,3575.8,34.69191576]
[1732855754120,1.72454007,3575.9,3575.8,23.69382486]
[1732855754419,1.72454007,3575.9,3575.8,23.69381293]
[1732855754626,1.72454007,3575.9,3575.8,24.10561293]
[1732855755322,1.72454007,3575.9,3575.8,23.98985902]
[1732855755528,1.72454007,3575.9,3575.8,24.10561529]
[1732855757319,4.39,3575.9,3575.8,24.16561529]
[1732855757725,0.4287,3576.3,3576.2,0.27955]
[1732855757916,0.4287,3576.3,3576.2,20.96051406]
[1732855757917,4.6487,3576.3,3576.2,20.96051406]
[1732855758925,4.6487,3576.3,3576.2,20.95764561]
[1732855760725,4.5787,3576.3,3576.2,21.06764561]
[1732855761619,4.5787,3576.3,3576.2,20.95188934]
[1732855761821,4.5787,3576.3,3576.2,21.06761279]
[1732855762225,4.5787,3576.3,3576.2,14.46738681]
[1732855764223,4.5787,3576.3,3576.2,13.26385081]
[1732855764629,4.5787,3576.3,3576.2,18.83390842]
[1732855764829,4.5787,3576.3,3576.2,14.43619747]
[1732855765126,4.5787,3576.3,3576.2,13.14768778]
[1732855765326,4.5787,3576.3,3576.2,18.83316843]
[1732855765628,4.5787,3576.3,3576.2,13.26338826]
[1732855766828,4.5787,3576.3,3576.2,14.43562316]
[1732855767129,4.5787,3576.3,3576.2,18.8324842]
[1732855767820,4.15,3576.3,3576.2,18.83226022]
[1732855768031,4.15,3576.3,3576.2,14.43539918]
[1732855768229,4.15,3576.3,3576.2,26.18165049]
[1732855768431,1.69362803,3576.3,3576.2,25.42813408]
[1732855768731,1.69362803,3576.3,3576.2,36.56527993]
[1732855769232,1.69362803,3576.3,3576.2,25.42736715]
[1732855771127,1.69362803,3576.3,3576.2,16.62706584]
[1732855771327,0.449,3576.9,3576.2,25.14781715]
[1732855771528,4.36,3576.9,3576.8,4.52036641]
[1732855771728,4.36,3576.9,3576.8,8.63603719]
[1732855771934,4.36,3576.9,3576.8,13.44825129]
[1732855772428,4.36,3576.9,3576.8,13.33258051]
[1732855772927,4.36,3576.9,3576.8,13.44816254]
[1732855773327,4.36,3576.9,3576.8,13.44813221]
[1732855774134,4.36,3576.9,3576.8,9.05371811]
[1732855774341,4.36,3576.9,3576.8,13.44813221]
[1732855774733,4.36,3576.9,3576.8,13.87583221]
[1732855775139,4.36,3576.9,3576.8,9.48141811]
[1732855775545,4.36,3576.9,3576.8,10.51448452]
[1732855775746,4.12,3576.9,3576.8,25.18330889]
[1732855775949,0.41222257,3576.9,3576.8,18.75563604]
[1732855776141,4.5,3576.9,3576.8,21.55167949]
[1732855776333,4.0,3576.9,3576.8,13.87009165]
[1732855776540,4.0,3576.9,3576.8,14.83009165]
[1732855777237,4.0,3576.9,3576.8,10.44139014]
[1732855779242,4.0,3576.9,3576.8,10.32586641]
[1732855779451,4.0,3576.9,3576.8,10.44134773]
[1732855779644,9.64688125,3577.7,3576.8,11.07943282]
[1732855779947,4.21,3577.7,3577.6,1.03306641]
[1732855780148,4.21,3577.7,3577.6,5.03306641]
[1732855780646,4.21,3577.7,3577.6,5.14853658]
[1732855781741,4.48943,3577.7,3577.6,5.14853658]